[Event "Titled Tuesday Blitz January 17 Late 2023"]
[White "Averjanov, Alexey"]
[Black "Perez Perez, Gabriel"]
[WhiteFideId "14109867"]
[BlackFideId "32089147"]
[WhiteElo "2399"]
[BlackElo "2185"]
[Result "1/2-1/2"]
[Round "06"]
[TimeControl "180+2"]
[Date "2023.01.17"]
[WhiteClock "0:02:57"]
[BlackClock "0:02:15"]

1. d4 {[%clk 0:03:00]}  d6 {[%clk 0:02:54]} 2. c4 {[%clk 0:03:00]}  Nf6 {[%clk 0:02:53]} 3. Nc3 {[%clk 0:03:00]}  e5 {[%clk 0:02:53]} 4. Nf3 {[%clk 0:03:00]}  Nbd7 {[%clk 0:02:52]} 5. e4 {[%clk 0:03:00]}  exd4 {[%clk 0:02:48]} 6. Nxd4 {[%clk 0:02:59]}  g6 {[%clk 0:02:49]} 7. Be3 {[%clk 0:02:59]}  Bg7 {[%clk 0:02:49]} 8. f3 {[%clk 0:02:59]}  O-O {[%clk 0:02:50]} 9. Qd2 {[%clk 0:02:59]}  Re8 {[%clk 0:02:45]} 10. Be2 {[%clk 0:02:59]}  a6 {[%clk 0:02:42]} 11. O-O {[%clk 0:02:59]}  Ne5 {[%clk 0:02:28]} 12. Rac1 {[%clk 0:02:58]}  Bd7 {[%clk 0:02:24]} 13. Rfd1 {[%clk 0:02:58]}  h5 {[%clk 0:02:15]} 14. b3 {[%clk 0:02:57]} 1/2-1/2


[Site "https://www.chess.com"]

[Event "Titled Tuesday Blitz January 17 Late 2023"]
[White "Santos Flores, Alberto"]
[Black "Yedidia, Daniel"]
[WhiteFideId "3601234"]
[BlackFideId "30905907"]
[WhiteElo "2164"]
[BlackElo "2041"]
[Result "0-1"]
[Round "06"]
[TimeControl "180+2"]
[Date "2023.01.17"]
[WhiteClock "0:00:56"]
[BlackClock "0:00:33"]

1. e4 {[%clk 0:03:00]}  e5 {[%clk 0:03:00]} 2. Nf3 {[%clk 0:03:00]}  Nc6 {[%clk 0:03:00]} 3. Bc4 {[%clk 0:03:00]}  Nf6 {[%clk 0:03:00]} 4. d3 {[%clk 0:03:00]}  Be7 {[%clk 0:03:01]} 5. O-O {[%clk 0:03:00]}  O-O {[%clk 0:03:01]} 6. Re1 {[%clk 0:02:59]}  d6 {[%clk 0:03:01]} 7. c3 {[%clk 0:02:59]}  Na5 {[%clk 0:03:02]} 8. Bb5 {[%clk 0:02:59]}  a6 {[%clk 0:03:02]} 9. Ba4 {[%clk 0:02:59]}  b5 {[%clk 0:03:02]} 10. Bc2 {[%clk 0:02:59]}  c5 {[%clk 0:03:03]} 11. d4 {[%clk 0:02:57]}  cxd4 {[%clk 0:02:50]} 12. cxd4 {[%clk 0:02:57]}  Nc6 {[%clk 0:02:50]} 13. h3 {[%clk 0:02:50]}  Bb7 {[%clk 0:02:45]} 14. Nc3 {[%clk 0:02:49]}  Rc8 {[%clk 0:02:44]} 15. a3 {[%clk 0:02:33]}  Qc7 {[%clk 0:02:39]} 16. Bg5 {[%clk 0:02:30]}  Nxd4 {[%clk 0:02:25]} 17. Nxd4 {[%clk 0:02:29]}  exd4 {[%clk 0:02:26]} 18. Qxd4 {[%clk 0:02:27]}  Qc5 {[%clk 0:02:20]} 19. Be3 {[%clk 0:02:22]}  Nd7 {[%clk 0:02:16]} 20. Rad1 {[%clk 0:02:18]}  Ne5 {[%clk 0:02:10]} 21. Bb3 {[%clk 0:02:11]}  Rfd8 {[%clk 0:01:35]} 22. f4 {[%clk 0:02:04]}  Nc4 {[%clk 0:01:28]} 23. Qxc5 {[%clk 0:02:03]}  dxc5 {[%clk 0:01:23]} 24. Bxc4 {[%clk 0:02:03]}  bxc4 {[%clk 0:01:24]} 25. Kf2 {[%clk 0:01:54]}  Rd3 {[%clk 0:01:20]} 26. Na4 {[%clk 0:01:34]}  Bxe4 {[%clk 0:01:06]} 27. Rxd3 {[%clk 0:01:27]}  cxd3 {[%clk 0:00:54]} 28. Bxc5 {[%clk 0:01:24]}  d2 {[%clk 0:00:51]} 29. Rd1 {[%clk 0:01:09]}  Bxc5+ {[%clk 0:00:50]} 30. Nxc5 {[%clk 0:01:08]}  Rxc5 {[%clk 0:00:51]} 31. Rxd2 {[%clk 0:01:09]}  Rc2 {[%clk 0:00:51]} 32. Rxc2 {[%clk 0:01:09]}  Bxc2 {[%clk 0:00:51]} 33. Ke3 {[%clk 0:01:09]}  Kf8 {[%clk 0:00:52]} 34. Kd4 {[%clk 0:01:09]}  Ke7 {[%clk 0:00:52]} 35. Kc5 {[%clk 0:01:10]}  Be4 {[%clk 0:00:48]} 36. g3 {[%clk 0:01:09]}  Kd7 {[%clk 0:00:46]} 37. Kb6 {[%clk 0:01:09]}  Bd3 {[%clk 0:00:47]} 38. a4 {[%clk 0:01:08]}  h5 {[%clk 0:00:39]} 39. b4 {[%clk 0:01:05]}  f6 {[%clk 0:00:37]} 40. b5 {[%clk 0:00:59]}  axb5 {[%clk 0:00:36]} 41. axb5 {[%clk 0:01:00]}  g5 {[%clk 0:00:36]} 42. fxg5 {[%clk 0:00:59]}  fxg5 {[%clk 0:00:37]} 43. h4 {[%clk 0:00:58]}  g4 {[%clk 0:00:36]} 44. Kc5 {[%clk 0:00:57]}  Ke6 {[%clk 0:00:35]} 45. b6 {[%clk 0:00:55]}  Be4 {[%clk 0:00:34]} 46. Kd4 {[%clk 0:00:55]}  Kf5 {[%clk 0:00:34]} 47. Kc5 {[%clk 0:00:54]}  Bb7 {[%clk 0:00:33]} 48. Kd6 {[%clk 0:00:53]}  Ke4 {[%clk 0:00:33]} 49. Ke6 {[%clk 0:00:53]}  Kf3 {[%clk 0:00:33]} 50. Kf5 {[%clk 0:00:54]}  Kxg3 {[%clk 0:00:33]} 51. Kg5 {[%clk 0:00:55]}  Kf3 {[%clk 0:00:32]} 52. Kxh5 {[%clk 0:00:56]}  g3 {[%clk 0:00:33]} 0-1


[Site "https://www.chess.com"]

[Event "Titled Tuesday Blitz January 17 Late 2023"]
[White "Mosquera, Miguel"]
[Black "Nefedov, Sergey"]
[WhiteFideId "4401131"]
[BlackFideId "24113417"]
[WhiteElo "2371"]
[BlackElo "2300"]
[Result "0-1"]
[Round "06"]
[TimeControl "180+2"]
[Date "2023.01.17"]
[WhiteClock "0:00:03"]
[BlackClock "0:00:09"]

1. d4 {[%clk 0:03:00]}  d5 {[%clk 0:02:55]} 2. c4 {[%clk 0:02:56]}  e6 {[%clk 0:02:55]} 3. g3 {[%clk 0:02:56]}  g6 {[%clk 0:02:54]} 4. Bg2 {[%clk 0:02:56]}  Bg7 {[%clk 0:02:55]} 5. Nf3 {[%clk 0:02:56]}  Ne7 {[%clk 0:02:55]} 6. O-O {[%clk 0:02:54]}  O-O {[%clk 0:02:56]} 7. Re1 {[%clk 0:02:47]}  Nbc6 {[%clk 0:02:56]} 8. Bf4 {[%clk 0:02:37]}  dxc4 {[%clk 0:02:56]} 9. Qc2 {[%clk 0:02:33]}  Nxd4 {[%clk 0:02:54]} 10. Nxd4 {[%clk 0:02:32]}  Qxd4 {[%clk 0:02:53]} 11. Nc3 {[%clk 0:02:32]}  Qb6 {[%clk 0:02:32]} 12. Be3 {[%clk 0:02:21]}  Qa5 {[%clk 0:02:30]} 13. Red1 {[%clk 0:02:00]}  Nf5 {[%clk 0:02:18]} 14. Bf4 {[%clk 0:01:31]}  e5 {[%clk 0:02:12]} 15. Rd5 {[%clk 0:01:11]}  Qb6 {[%clk 0:02:05]} 16. Bxe5 {[%clk 0:01:08]}  Be6 {[%clk 0:02:02]} 17. Bxg7 {[%clk 0:01:03]}  Kxg7 {[%clk 0:02:01]} 18. Rdd1 {[%clk 0:00:58]}  Rad8 {[%clk 0:02:00]} 19. e3 {[%clk 0:00:56]}  Nd6 {[%clk 0:01:28]} 20. Rac1 {[%clk 0:00:38]}  Bf5 {[%clk 0:01:24]} 21. e4 {[%clk 0:00:39]}  Bg4 {[%clk 0:01:23]} 22. Nd5 {[%clk 0:00:37]}  Qa5 {[%clk 0:01:05]} 23. Re1 {[%clk 0:00:36]}  c6 {[%clk 0:01:00]} 24. Ne3 {[%clk 0:00:37]}  Be6 {[%clk 0:01:00]} 25. e5 {[%clk 0:00:29]}  Qxe5 {[%clk 0:00:34]} 26. Nxc4 {[%clk 0:00:25]}  Qf6 {[%clk 0:00:34]} 27. Ne3 {[%clk 0:00:22]}  h5 {[%clk 0:00:31]} 28. Rcd1 {[%clk 0:00:21]}  Nf5 {[%clk 0:00:28]} 29. Nxf5+ {[%clk 0:00:14]}  Bxf5 {[%clk 0:00:28]} 30. Qc3 {[%clk 0:00:15]}  Qxc3 {[%clk 0:00:27]} 31. bxc3 {[%clk 0:00:16]}  Bg4 {[%clk 0:00:23]} 32. f3 {[%clk 0:00:16]}  Be6 {[%clk 0:00:22]} 33. Rb1 {[%clk 0:00:09]}  b6 {[%clk 0:00:20]} 34. f4 {[%clk 0:00:08]}  Bxa2 {[%clk 0:00:17]} 35. Ra1 {[%clk 0:00:07]}  Rd2 {[%clk 0:00:16]} 36. Bxc6 {[%clk 0:00:06]}  Rc8 {[%clk 0:00:15]} 37. Bb5 {[%clk 0:00:03]}  Rxc3 {[%clk 0:00:15]} 38. Re2 {[%clk 0:00:03]}  Rxe2 {[%clk 0:00:15]} 39. Bxe2 {[%clk 0:00:04]}  Rc2 {[%clk 0:00:15]} 40. Bf3 {[%clk 0:00:04]}  b5 {[%clk 0:00:13]} 41. Be4 {[%clk 0:00:03]}  Rd2 {[%clk 0:00:13]} 42. Bg2 {[%clk 0:00:03]}  b4 {[%clk 0:00:13]} 43. h3 {[%clk 0:00:04]}  b3 {[%clk 0:00:13]} 44. Rf1 {[%clk 0:00:04]}  b2 {[%clk 0:00:14]} 45. Be4 {[%clk 0:00:04]}  Re2 {[%clk 0:00:11]} 46. Bd3 {[%clk 0:00:04]}  Re3 {[%clk 0:00:12]} 47. Bb1 {[%clk 0:00:03]}  Bxb1 {[%clk 0:00:11]} 48. Rxb1 {[%clk 0:00:04]}  Rxg3+ {[%clk 0:00:11]} 49. Kf2 {[%clk 0:00:04]}  Rb3 {[%clk 0:00:12]} 50. h4 {[%clk 0:00:04]}  a5 {[%clk 0:00:12]} 51. Ke2 {[%clk 0:00:04]}  a4 {[%clk 0:00:13]} 52. Kd2 {[%clk 0:00:05]}  a3 {[%clk 0:00:13]} 53. Kc2 {[%clk 0:00:05]}  Rb4 {[%clk 0:00:12]} 54. Kc3 {[%clk 0:00:05]}  a2 {[%clk 0:00:10]} 55. Re1 {[%clk 0:00:03]}  b1=Q {[%clk 0:00:09]} 56. Rxb1 {[%clk 0:00:03]}  axb1=Q {[%clk 0:00:09]} 57. f5 {[%clk 0:00:03]}  Qb2+ {[%clk 0:00:09]} 58. Kd3 {[%clk 0:00:03]}  Qa3+ {[%clk 0:00:08]} 59. Kc2 {[%clk 0:00:02]}  Rb2+ {[%clk 0:00:08]} 60. Kc1 {[%clk 0:00:03]}  Qa1# {[%clk 0:00:09]} 0-1


[Site "https://www.chess.com"]

[Event "Titled Tuesday Blitz January 17 Late 2023"]
[White "Omelja, Artem"]
[Black "Andrews, Todd"]
[WhiteFideId "14119846"]
[BlackFideId "2012456"]
[WhiteElo "2446"]
[BlackElo "2220"]
[Result "0-1"]
[Round "06"]
[TimeControl "180+2"]
[Date "2023.01.17"]
[WhiteClock "0:01:11"]
[BlackClock "0:00:30"]

1. e4 {[%clk 0:03:00]}  e6 {[%clk 0:02:59]} 2. d3 {[%clk 0:02:58]}  d5 {[%clk 0:02:59]} 3. Nd2 {[%clk 0:02:57]}  Nf6 {[%clk 0:02:59]} 4. Ngf3 {[%clk 0:02:57]}  Nc6 {[%clk 0:03:00]} 5. c3 {[%clk 0:02:55]}  Be7 {[%clk 0:02:59]} 6. e5 {[%clk 0:02:54]}  Nd7 {[%clk 0:02:58]} 7. d4 {[%clk 0:02:55]}  f6 {[%clk 0:02:54]} 8. exf6 {[%clk 0:02:54]}  Bxf6 {[%clk 0:02:53]} 9. Bd3 {[%clk 0:02:55]}  e5 {[%clk 0:02:42]} 10. dxe5 {[%clk 0:02:45]}  Ndxe5 {[%clk 0:02:43]} 11. Nxe5 {[%clk 0:02:44]}  Nxe5 {[%clk 0:02:43]} 12. Bc2 {[%clk 0:02:41]}  Bg4 {[%clk 0:02:37]} 13. f3 {[%clk 0:02:40]}  Bd7 {[%clk 0:02:30]} 14. O-O {[%clk 0:02:40]}  O-O {[%clk 0:02:29]} 15. Re1 {[%clk 0:02:38]}  c6 {[%clk 0:02:26]} 16. Nf1 {[%clk 0:02:36]}  Qb6+ {[%clk 0:02:05]} 17. Be3 {[%clk 0:02:34]}  Qxb2 {[%clk 0:02:05]} 18. Bd4 {[%clk 0:02:33]}  b6 {[%clk 0:01:44]} 19. Bxe5 {[%clk 0:02:25]}  Bxe5 {[%clk 0:01:43]} 20. Rxe5 {[%clk 0:02:25]}  Qxc3 {[%clk 0:01:41]} 21. Re7 {[%clk 0:02:25]}  Qc5+ {[%clk 0:01:37]} 22. Re3 {[%clk 0:02:23]}  Rae8 {[%clk 0:01:36]} 23. Qd3 {[%clk 0:02:22]}  Bf5 {[%clk 0:01:32]} 24. Qc3 {[%clk 0:01:58]}  Bxc2 {[%clk 0:01:26]} 25. Qxc5 {[%clk 0:01:57]}  bxc5 {[%clk 0:01:26]} 26. Rc3 {[%clk 0:01:58]}  Bg6 {[%clk 0:01:15]} 27. Rxc5 {[%clk 0:01:58]}  Re6 {[%clk 0:01:14]} 28. Rac1 {[%clk 0:01:57]}  Be8 {[%clk 0:01:02]} 29. Kf2 {[%clk 0:01:55]}  Rf4 {[%clk 0:01:01]} 30. R1c2 {[%clk 0:01:51]}  Ra4 {[%clk 0:00:58]} 31. Ne3 {[%clk 0:01:49]}  Ra3 {[%clk 0:00:55]} 32. Nf5 {[%clk 0:01:48]}  Rd3 {[%clk 0:00:45]} 33. g4 {[%clk 0:01:36]}  g6 {[%clk 0:00:43]} 34. Ng3 {[%clk 0:01:36]}  Rf6 {[%clk 0:00:38]} 35. Kg2 {[%clk 0:01:17]}  Rfxf3 {[%clk 0:00:37]} 36. Ra5 {[%clk 0:01:16]}  Ra3 {[%clk 0:00:35]} 37. Rcc5 {[%clk 0:01:15]}  Bd7 {[%clk 0:00:33]} 38. Ne2 {[%clk 0:01:11]}  Bxg4 {[%clk 0:00:31]} 39. Nd4 {[%clk 0:01:11]}  Bh3+ {[%clk 0:00:30]} 0-1


[Site "https://www.chess.com"]

[Event "Titled Tuesday Blitz January 17 Late 2023"]
[White "ArchibaldCerveza29"]
[Black "Khandelwal, Ankush"]
[BlackFideId "413470"]
[WhiteElo "2547"]
[BlackElo "2205"]
[Result "0-1"]
[Round "06"]
[TimeControl "180+2"]
[Date "2023.01.17"]
[WhiteClock "0:00:01"]
[BlackClock "0:00:31"]

1. d4 {[%clk 0:03:00]}  Nf6 {[%clk 0:02:59]} 2. c4 {[%clk 0:03:00]}  g6 {[%clk 0:03:00]} 3. Nc3 {[%clk 0:03:00]}  Bg7 {[%clk 0:02:59]} 4. e4 {[%clk 0:03:00]}  d6 {[%clk 0:02:59]} 5. Nf3 {[%clk 0:02:59]}  O-O {[%clk 0:02:59]} 6. Be2 {[%clk 0:03:00]}  Na6 {[%clk 0:02:59]} 7. h4 {[%clk 0:02:57]}  e5 {[%clk 0:02:57]} 8. d5 {[%clk 0:02:49]}  Nc5 {[%clk 0:02:57]} 9. Nd2 {[%clk 0:02:49]}  h5 {[%clk 0:02:46]} 10. b4 {[%clk 0:02:49]}  Ncd7 {[%clk 0:02:46]} 11. Bb2 {[%clk 0:02:48]}  a5 {[%clk 0:02:46]} 12. a3 {[%clk 0:02:48]}  c6 {[%clk 0:02:45]} 13. Nb3 {[%clk 0:02:44]}  axb4 {[%clk 0:02:43]} 14. axb4 {[%clk 0:02:45]}  Rxa1 {[%clk 0:02:43]} 15. Bxa1 {[%clk 0:02:43]}  Qb6 {[%clk 0:02:38]} 16. b5 {[%clk 0:02:33]}  cxb5 {[%clk 0:02:25]} 17. cxb5 {[%clk 0:02:30]}  Nc5 {[%clk 0:02:17]} 18. Nxc5 {[%clk 0:02:26]}  Qxc5 {[%clk 0:02:18]} 19. O-O {[%clk 0:02:26]}  Bg4 {[%clk 0:02:08]} 20. Qd2 {[%clk 0:02:12]}  Ra8 {[%clk 0:02:02]} 21. Bb2 {[%clk 0:02:06]}  Qd4 {[%clk 0:01:55]} 22. Qc2 {[%clk 0:01:39]}  Bxe2 {[%clk 0:01:44]} 23. Qxe2 {[%clk 0:01:40]}  Rc8 {[%clk 0:01:34]} 24. Rc1 {[%clk 0:00:53]}  Bh6 {[%clk 0:01:34]} 25. Rc2 {[%clk 0:00:54]}  Ng4 {[%clk 0:01:28]} 26. Nd1 {[%clk 0:00:43]}  Rxc2 {[%clk 0:01:19]} 27. Qxc2 {[%clk 0:00:44]}  Qb4 {[%clk 0:01:13]} 28. Nc3 {[%clk 0:00:39]}  Qc5 {[%clk 0:01:02]} 29. Qe2 {[%clk 0:00:14]}  Nxf2 {[%clk 0:01:00]} 30. Na4 {[%clk 0:00:15]}  Nh3+ {[%clk 0:00:35]} 31. Kh2 {[%clk 0:00:15]}  Qg1+ {[%clk 0:00:35]} 32. Kxh3 {[%clk 0:00:14]}  Bf4 {[%clk 0:00:34]} 33. Qe1 {[%clk 0:00:01]}  Qh2# {[%clk 0:00:31]} 0-1


[Site "https://www.chess.com"]

[Event "Titled Tuesday Blitz January 17 Late 2023"]
[White "Fisher_TheGalactic"]
[Black "AidenRchess"]
[WhiteElo "2537"]
[BlackElo "2443"]
[Result "1/2-1/2"]
[Round "06"]
[TimeControl "180+2"]
[Date "2023.01.17"]
[WhiteClock "0:00:06"]
[BlackClock "0:00:26"]

1. Nf3 {[%clk 0:03:00]}  Nf6 {[%clk 0:02:59]} 2. g3 {[%clk 0:02:57]}  g6 {[%clk 0:02:58]} 3. Bg2 {[%clk 0:02:58]}  Bg7 {[%clk 0:02:58]} 4. O-O {[%clk 0:02:42]}  d5 {[%clk 0:02:56]} 5. d3 {[%clk 0:02:43]}  O-O {[%clk 0:02:57]} 6. Nbd2 {[%clk 0:02:43]}  c5 {[%clk 0:02:57]} 7. e4 {[%clk 0:02:43]}  Nc6 {[%clk 0:02:57]} 8. exd5 {[%clk 0:02:43]}  Nxd5 {[%clk 0:02:57]} 9. Nc4 {[%clk 0:02:44]}  b5 {[%clk 0:02:50]} 10. Ne3 {[%clk 0:02:43]}  Bb7 {[%clk 0:02:44]} 11. Re1 {[%clk 0:02:39]}  e6 {[%clk 0:02:44]} 12. Nxd5 {[%clk 0:02:39]}  exd5 {[%clk 0:02:43]} 13. c3 {[%clk 0:02:38]}  b4 {[%clk 0:02:39]} 14. Qc2 {[%clk 0:02:37]}  Qb6 {[%clk 0:02:33]} 15. Bf4 {[%clk 0:02:29]}  a5 {[%clk 0:02:26]} 16. Ne5 {[%clk 0:02:07]}  Rfe8 {[%clk 0:02:18]} 17. Ng4 {[%clk 0:02:00]}  d4 {[%clk 0:02:09]} 18. c4 {[%clk 0:01:49]}  h5 {[%clk 0:02:03]} 19. Nh6+ {[%clk 0:01:46]}  Bxh6 {[%clk 0:01:56]} 20. Bxh6 {[%clk 0:01:46]}  Ne5 {[%clk 0:01:51]} 21. Bf4 {[%clk 0:01:33]}  Bxg2 {[%clk 0:01:45]} 22. Bxe5 {[%clk 0:01:28]}  Qc6 {[%clk 0:01:44]} 23. f4 {[%clk 0:00:53]}  Bh3 {[%clk 0:01:35]} 24. f5 {[%clk 0:00:44]}  Bxf5 {[%clk 0:01:29]} 25. Bf4 {[%clk 0:00:36]}  Qf3 {[%clk 0:01:27]} 26. Qd2 {[%clk 0:00:11]}  Qxd3 {[%clk 0:01:24]} 27. Qxd3 {[%clk 0:00:11]}  Bxd3 {[%clk 0:01:24]} 28. b3 {[%clk 0:00:12]}  Bf5 {[%clk 0:01:19]} 29. Bd6 {[%clk 0:00:10]}  d3 {[%clk 0:01:13]} 30. Kf2 {[%clk 0:00:04]}  Red8 {[%clk 0:01:06]} 31. Bxc5 {[%clk 0:00:04]}  d2 {[%clk 0:01:06]} 32. Red1 {[%clk 0:00:03]}  Bg4 {[%clk 0:01:06]} 33. Be3 {[%clk 0:00:03]}  Bxd1 {[%clk 0:01:05]} 34. Rxd1 {[%clk 0:00:04]}  a4 {[%clk 0:01:05]} 35. Rxd2 {[%clk 0:00:04]}  Rxd2+ {[%clk 0:01:05]} 36. Bxd2 {[%clk 0:00:04]}  axb3 {[%clk 0:01:05]} 37. axb3 {[%clk 0:00:05]}  Ra2 {[%clk 0:01:03]} 38. Ke3 {[%clk 0:00:05]}  Rb2 {[%clk 0:01:04]} 39. c5 {[%clk 0:00:04]}  Rxb3+ {[%clk 0:01:03]} 40. Kd4 {[%clk 0:00:04]}  Rb2 {[%clk 0:01:03]} 41. Kd3 {[%clk 0:00:02]}  b3 {[%clk 0:01:01]} 42. c6 {[%clk 0:00:03]}  Rc2 {[%clk 0:00:59]} 43. Bc3 {[%clk 0:00:03]}  Ra2 {[%clk 0:00:54]} 44. c7 {[%clk 0:00:02]}  Ra8 {[%clk 0:00:54]} 45. Bf6 {[%clk 0:00:02]}  Kf8 {[%clk 0:00:48]} 46. Kc3 {[%clk 0:00:03]}  Ke8 {[%clk 0:00:42]} 47. Kxb3 {[%clk 0:00:03]}  Kd7 {[%clk 0:00:43]} 48. Bd8 {[%clk 0:00:03]}  Rc8 {[%clk 0:00:43]} 49. Kc4 {[%clk 0:00:02]}  Rxc7+ {[%clk 0:00:40]} 50. Bxc7 {[%clk 0:00:02]}  Kxc7 {[%clk 0:00:41]} 51. Kd5 {[%clk 0:00:03]}  Kd7 {[%clk 0:00:41]} 52. h4 {[%clk 0:00:04]}  f6 {[%clk 0:00:40]} 53. Ke4 {[%clk 0:00:04]}  Ke6 {[%clk 0:00:41]} 54. Kf4 {[%clk 0:00:04]}  Kd6 {[%clk 0:00:40]} 55. Ke4 {[%clk 0:00:04]}  Ke7 {[%clk 0:00:35]} 56. Kd5 {[%clk 0:00:03]}  Kd7 {[%clk 0:00:36]} 57. Kd4 {[%clk 0:00:03]}  Kd6 {[%clk 0:00:34]} 58. Ke4 {[%clk 0:00:04]}  Ke6 {[%clk 0:00:34]} 59. Kf4 {[%clk 0:00:03]}  Kd5 {[%clk 0:00:34]} 60. Kf3 {[%clk 0:00:02]}  Ke5 {[%clk 0:00:34]} 61. Ke3 {[%clk 0:00:02]}  g5 {[%clk 0:00:33]} 62. hxg5 {[%clk 0:00:02]}  fxg5 {[%clk 0:00:34]} 63. Kf3 {[%clk 0:00:02]}  g4+ {[%clk 0:00:32]} 64. Ke3 {[%clk 0:00:02]}  Kf5 {[%clk 0:00:32]} 65. Kd3 {[%clk 0:00:02]}  Kg5 {[%clk 0:00:25]} 66. Ke3 {[%clk 0:00:02]}  h4 {[%clk 0:00:23]} 67. gxh4+ {[%clk 0:00:02]}  Kxh4 {[%clk 0:00:23]} 68. Kf2 {[%clk 0:00:03]}  Kh3 {[%clk 0:00:24]} 69. Kg1 {[%clk 0:00:03]}  Kg3 {[%clk 0:00:24]} 70. Kh1 {[%clk 0:00:03]}  Kh3 {[%clk 0:00:24]} 71. Kg1 {[%clk 0:00:03]}  g3 {[%clk 0:00:24]} 72. Kh1 {[%clk 0:00:02]}  Kh4 {[%clk 0:00:25]} 73. Kg2 {[%clk 0:00:02]}  Kg4 {[%clk 0:00:25]} 74. Kg1 {[%clk 0:00:03]}  Kf3 {[%clk 0:00:25]} 75. Kf1 {[%clk 0:00:03]}  Ke3 {[%clk 0:00:23]} 76. Kg2 {[%clk 0:00:04]}  Kf4 {[%clk 0:00:24]} 77. Kg1 {[%clk 0:00:04]}  Kf5 {[%clk 0:00:24]} 78. Kg2 {[%clk 0:00:04]}  Kg4 {[%clk 0:00:25]} 79. Kg1 {[%clk 0:00:05]}  Kh3 {[%clk 0:00:25]} 80. Kh1 {[%clk 0:00:05]}  Kh4 {[%clk 0:00:25]} 81. Kg2 {[%clk 0:00:06]}  Kg4 {[%clk 0:00:26]} 1/2-1/2


[Site "https://www.chess.com"]

[Event "Titled Tuesday Blitz January 17 Late 2023"]
[White "Munoz, Francisco Javier"]
[Black "Jorajuria Mendoza, Algol"]
[WhiteFideId "128368"]
[BlackFideId "5128897"]
[WhiteElo "2389"]
[BlackElo "2069"]
[Result "1/2-1/2"]
[Round "06"]
[TimeControl "180+2"]
[Date "2023.01.17"]
[WhiteClock "0:00:24"]
[BlackClock "0:00:52"]

1. e4 {[%clk 0:02:56]}  g6 {[%clk 0:03:00]} 2. Nc3 {[%clk 0:02:57]}  Bg7 {[%clk 0:03:00]} 3. d4 {[%clk 0:02:48]}  d6 {[%clk 0:02:59]} 4. Be3 {[%clk 0:02:48]}  b6 {[%clk 0:02:59]} 5. Qd2 {[%clk 0:02:49]}  Bb7 {[%clk 0:02:59]} 6. O-O-O {[%clk 0:02:49]}  Nd7 {[%clk 0:02:50]} 7. Kb1 {[%clk 0:02:49]}  c5 {[%clk 0:02:50]} 8. f3 {[%clk 0:02:48]}  Rc8 {[%clk 0:02:45]} 9. Nge2 {[%clk 0:02:46]}  a6 {[%clk 0:02:40]} 10. g4 {[%clk 0:02:45]}  h6 {[%clk 0:02:37]} 11. h4 {[%clk 0:02:45]}  Qc7 {[%clk 0:02:27]} 12. h5 {[%clk 0:02:44]}  g5 {[%clk 0:02:26]} 13. Ng3 {[%clk 0:02:40]}  e6 {[%clk 0:02:22]} 14. d5 {[%clk 0:02:31]}  e5 {[%clk 0:02:10]} 15. Nf5 {[%clk 0:02:30]}  Bf6 {[%clk 0:02:10]} 16. Bb5 {[%clk 0:02:04]}  Ne7 {[%clk 0:02:02]} 17. Nxe7 {[%clk 0:02:03]}  Kxe7 {[%clk 0:02:02]} 18. Bc6 {[%clk 0:02:03]}  b5 {[%clk 0:01:50]} 19. Bxb7 {[%clk 0:01:59]}  Qxb7 {[%clk 0:01:50]} 20. Ne2 {[%clk 0:01:59]}  Nb6 {[%clk 0:01:47]} 21. b3 {[%clk 0:01:57]}  b4 {[%clk 0:01:41]} 22. Ng3 {[%clk 0:01:53]}  a5 {[%clk 0:01:20]} 23. Rdf1 {[%clk 0:01:51]}  a4 {[%clk 0:01:19]} 24. Nf5+ {[%clk 0:01:01]}  Kd7 {[%clk 0:01:17]} 25. Qe2 {[%clk 0:00:58]}  c4 {[%clk 0:01:01]} 26. Qf2 {[%clk 0:00:58]}  cxb3 {[%clk 0:00:57]} 27. cxb3 {[%clk 0:00:56]}  axb3 {[%clk 0:00:56]} 28. Bxb6 {[%clk 0:00:55]}  Rc2 {[%clk 0:00:53]} 29. Qe3 {[%clk 0:00:35]}  Rc3 {[%clk 0:00:53]} 30. Qf2 {[%clk 0:00:24]}  Rc2 {[%clk 0:00:53]} 31. Qe3 {[%clk 0:00:24]}  Rc3 {[%clk 0:00:53]} 32. Qf2 {[%clk 0:00:24]}  Rc2 {[%clk 0:00:52]} 1/2-1/2


[Site "https://www.chess.com"]

[Event "Titled Tuesday Blitz January 17 Late 2023"]
[White "Mesa Cruz, Juan Carlos"]
[Black "Ozates, Tuna"]
[WhiteFideId "6423400"]
[BlackFideId "6354521"]
[WhiteElo "2122"]
[BlackElo "2251"]
[Result "0-1"]
[Round "06"]
[TimeControl "180+2"]
[Date "2023.01.17"]
[WhiteClock "0:00:07"]
[BlackClock "0:02:21"]

1. e4 {[%clk 0:02:51]}  e5 {[%clk 0:02:58]} 2. Nf3 {[%clk 0:02:47]}  Nc6 {[%clk 0:02:57]} 3. Bc4 {[%clk 0:02:44]}  Bc5 {[%clk 0:02:56]} 4. c3 {[%clk 0:02:36]}  Nf6 {[%clk 0:02:56]} 5. d3 {[%clk 0:02:31]}  O-O {[%clk 0:02:54]} 6. Nbd2 {[%clk 0:02:15]}  d5 {[%clk 0:02:53]} 7. exd5 {[%clk 0:02:08]}  Nxd5 {[%clk 0:02:54]} 8. O-O {[%clk 0:02:04]}  Bg4 {[%clk 0:02:51]} 9. Re1 {[%clk 0:01:59]}  Re8 {[%clk 0:02:51]} 10. h3 {[%clk 0:01:39]}  Bh5 {[%clk 0:02:49]} 11. Ne4 {[%clk 0:01:39]}  Bf8 {[%clk 0:02:48]} 12. b4 {[%clk 0:01:15]}  a6 {[%clk 0:02:47]} 13. Bg5 {[%clk 0:01:10]}  Qd7 {[%clk 0:02:47]} 14. a4 {[%clk 0:00:54]}  f5 {[%clk 0:02:37]} 15. Qb3 {[%clk 0:00:32]}  Bf7 {[%clk 0:02:35]} 16. Nc5 {[%clk 0:00:26]}  Bxc5 {[%clk 0:02:32]} 17. bxc5 {[%clk 0:00:27]}  Na5 {[%clk 0:02:32]} 18. Qc2 {[%clk 0:00:17]}  e4 {[%clk 0:02:29]} 19. Bxd5 {[%clk 0:00:07]}  Bxd5 {[%clk 0:02:25]} 20. Nd4 {[%clk 0:00:07]}  exd3 {[%clk 0:02:21]} 0-1


[Site "https://www.chess.com"]